fUST/lending_fUST_20250528
["ID","MTS","AMOUNT","RATE_DAILY","PERIOD"]
[362703303,1748399444796,-283.21184435,0.0002,2]
[362703305,1748399444805,-430.0,0.0002,2]
[362703307,1748399444815,-430.0,0.0002,2]
[362703309,1748399444824,-430.0,0.0002,2]
[362703311,1748399444833,-572.474945,0.0002,2]
[362703313,1748399444843,-440.97500096,0.0002,2]
[362703315,1748399444852,-572.474945,0.0002,2]
[362703317,1748399444862,-335.81528809,0.0002,2]
[362703320,1748399444872,-151.0,0.0002,2]
[362703321,1748399444885,-430.0,0.0002,2]
[362703323,1748399444894,-430.0,0.0002,2]
[362703325,1748399444904,-430.0,0.0002,2]
[362703327,1748399444914,-1187.79,0.0002,2]
[362703329,1748399444924,-430.0,0.0002,2]
[362703331,1748399444934,-430.0,0.0002,2]
[362703334,1748399444943,-430.0,0.0002,2]
[362703335,1748399444953,-1068.0,0.0002,2]
[362703338,1748399444964,-430.0,0.0002,2]
[362703340,1748399444975,-522.83896586,0.0002,2]
[362703341,1748399444985,-430.0,0.0002,2]
[362703343,1748399444996,-1199.77,0.0002,2]
[362703346,1748399445006,-2024.32,0.0002,2]
[362703347,1748399445015,-430.0,0.0002,2]
[362703349,1748399445025,-430.0,0.0002,2]
[362703351,1748399445035,-2316.43,0.0002,2]
[362703353,1748399445044,-430.0,0.0002,2]
[362703355,1748399445055,-430.0,0.0002,2]
[362703357,1748399445065,-160.0,0.00020186,2]
[362703359,1748399445074,-423.24161968,0.00020186,2]
[362703361,1748399445084,-233.610272,0.00020187,2]
[362703363,1748399445094,-160.0,0.0002019,2]
[362703365,1748399445103,-212.66609673,0.0002019,2]
[362703377,1748399445211,-229.229959,0.0002019,2]
[362703379,1748399445223,-363.36394958,0.00020234,2]
[362703382,1748399445234,-500.0,0.00020272,2]
[362703384,1748399445245,-430.0,0.00020273,2]
[362703385,1748399445256,-430.0,0.00020273,2]
[362703387,1748399445267,-505.10341622,0.00020273,2]
[362703389,1748399445276,-430.0,0.00020273,2]
[362703391,1748399445285,-1187.79,0.00020273,2]
[362703393,1748399445295,-282.71797149,0.00020273,2]
[362703395,1748399445306,-430.0,0.00020273,2]
[362703397,1748399445315,-1068.0,0.00020273,2]
[362703399,1748399445324,-430.0,0.00020273,2]
[362703401,1748399445334,-430.0,0.00020273,2]
[362703403,1748399445344,-1199.77,0.00020273,2]
[362703405,1748399445355,-934.488273,0.00020273,2]
[362703407,1748399445364,-2024.32,0.00020273,2]
[362703409,1748399445374,-934.488273,0.00020273,2]
[362703411,1748399445384,-430.0,0.00020273,2]
[362703413,1748399445393,-430.0,0.00020273,2]
[362703415,1748399445403,-2316.43,0.00020273,2]
[362703417,1748399445411,-430.0,0.00020273,2]
[362703419,1748399445421,-151.0,0.00020273,2]
[362703421,1748399445431,-430.0,0.00020273,2]
[362703423,1748399445440,-207.4,0.00020537,2]
[362703425,1748399445449,-430.0,0.00020547,2]
[362703427,1748399445461,-430.0,0.00020547,2]
[362703429,1748399445470,-249.59982748,0.00020547,2]
[362703431,1748399445479,-1187.79,0.00020547,2]
[362703433,1748399445488,-430.0,0.00020547,2]
[362703435,1748399445498,-1068.0,0.00020547,2]
[362703437,1748399445508,-430.0,0.00020547,2]
[362703439,1748399445517,-430.0,0.00020547,2]
[362703441,1748399445526,-1199.77,0.00020547,2]
[362703443,1748399445536,-2024.32,0.00020547,2]
[362703445,1748399445545,-430.0,0.00020547,2]
[362703447,1748399445555,-430.0,0.00020547,2]
[362703449,1748399445566,-2316.43,0.00020547,2]
[362703451,1748399445575,-430.0,0.00020547,2]
[362703453,1748399445584,-430.0,0.00020547,2]
[362703455,1748399445593,-150.39828891,0.00020741,2]
[362703457,1748399445602,-411.25,0.00020801,10]
[362703459,1748399445611,-342.7,0.00020801,10]
[362703461,1748399445620,-285.59,0.00020801,10]
[362703463,1748399445630,-237.99,0.00020801,10]
[362703465,1748399445639,-485.1846634,0.00020815,2]
[362703467,1748399445648,-430.0,0.00020821,2]
[362703469,1748399445658,-430.0,0.00020821,2]
[362703471,1748399445667,-1299.655847,0.00020821,2]
[362703473,1748399445676,-1299.655847,0.00020821,2]
[362703475,1748399445685,-1187.79,0.00020821,2]
[362703477,1748399445694,-503.68691202,0.00020821,2]
[362703479,1748399445704,-1068.0,0.00020821,2]
[362703481,1748399445713,-430.0,0.00020821,2]
[362703483,1748399445723,-430.0,0.00020821,2]
[362703485,1748399445732,-1199.77,0.00020821,2]
[362703486,1748399445742,-2024.32,0.00020821,2]
[362703488,1748399445751,-430.0,0.00020821,2]
[362703490,1748399445761,-430.0,0.00020821,2]
[362703492,1748399445770,-2316.43,0.00020821,2]
[362703494,1748399445779,-430.0,0.00020821,2]
[362703496,1748399445790,-430.0,0.00020821,2]
[362703498,1748399445799,-243.18298631,0.000209,4]
[362703500,1748399445810,-183.011,0.00020957,2]
[362703502,1748399445819,-243.18298612,0.00021038,4]
[362703504,1748399445829,-817.06,0.00021067,2]
[362703506,1748399445839,-430.0,0.00021095,2]
[362703508,1748399445849,-430.0,0.00021095,2]
[362703510,1748399445858,-1187.79,0.00021095,2]
[362703512,1748399445868,-1068.0,0.00021095,2]
[362703514,1748399445879,-430.0,0.00021095,2]
[362703516,1748399445889,-430.0,0.00021095,2]
[362703518,1748399445899,-1199.77,0.00021095,2]
[362703520,1748399445908,-2024.32,0.00021095,2]
[362703522,1748399445918,-430.0,0.00021095,2]
[362703524,1748399445927,-430.0,0.00021095,2]
[362703526,1748399445936,-2316.43,0.00021095,2]
[362703528,1748399445946,-430.0,0.00021095,2]
[362703530,1748399445955,-430.0,0.00021095,2]
[362703532,1748399445964,-500.0,0.00021164,2]
[362703534,1748399445974,-243.18298612,0.00021176,4]
[362703536,1748399445983,-243.18298612,0.00021314,5]
[362703538,1748399445993,-500.0,0.00021368,2]
[362703540,1748399446002,-430.0,0.00021369,2]
[362703542,1748399446011,-430.0,0.00021369,2]
[362703544,1748399446020,-151.0,0.00021369,2]
[362703546,1748399446030,-572.474945,0.00021369,2]
[362703548,1748399446039,-572.474945,0.00021369,2]
[362703549,1748399446048,-151.0,0.00021369,2]
[362703550,1748399446057,-1187.79,0.00021369,2]
[362703551,1748399446067,-1068.0,0.00021369,2]
[362703552,1748399446076,-430.0,0.00021369,2]
[362703553,1748399446085,-430.0,0.00021369,2]
[362703554,1748399446095,-1199.77,0.00021369,2]
[362703555,1748399446104,-2024.32,0.00021369,2]
[362703556,1748399446113,-430.0,0.00021369,2]
[362703557,1748399446123,-430.0,0.00021369,2]
[362703558,1748399446133,-2316.43,0.00021369,2]
[362703559,1748399446143,-430.0,0.00021369,2]
[362703560,1748399446152,-430.0,0.00021369,2]
[362703561,1748399446161,-363.36394958,0.00021389,2]
[362703562,1748399446171,-243.18298612,0.00021452,5]
[362703563,1748399446180,-500.0,0.0002155,2]
[362703564,1748399446190,-500.0,0.0002155,2]
[362703565,1748399446199,-150.39828891,0.00021573,2]
[362703566,1748399446208,-243.18298612,0.0002159,5]
[362703567,1748399446217,-430.0,0.00021643,2]
[362703568,1748399446227,-430.0,0.00021643,2]
[362703569,1748399446236,-1187.79,0.00021643,2]
[362703570,1748399446245,-1068.0,0.00021643,2]
[362703571,1748399446256,-430.0,0.00021643,2]
[362703572,1748399446266,-430.0,0.00021643,2]
[362703573,1748399446276,-1199.77,0.00021643,2]
[362703574,1748399446285,-934.488273,0.00021643,2]
[362703575,1748399446295,-934.488273,0.00021643,2]
[362703576,1748399446306,-2024.32,0.00021643,2]
[362703577,1748399446315,-430.0,0.00021643,2]
[362703579,1748399446324,-430.0,0.00021643,2]
[362703580,1748399446333,-2316.43,0.00021643,2]
[362703581,1748399446343,-430.0,0.00021643,2]
[362703583,1748399446353,-151.0,0.00021643,2]
[362703585,1748399446363,-430.0,0.00021643,2]
[362703587,1748399446372,-243.18298612,0.00021728,5]
[362703589,1748399446385,-500.0,0.00021825,2]
[362703591,1748399446394,-600.0,0.00021825,2]
[362703593,1748399446403,-243.18298612,0.00021866,6]
[362703595,1748399446412,-194.32234698,0.000219,2]
[362703597,1748399446421,-215.0738,0.00021906,2]
[362703599,1748399446431,-430.0,0.00021917,2]
[362703601,1748399446440,-430.0,0.00021917,2]
[362703603,1748399446449,-1187.79,0.00021917,2]
[362703605,1748399446459,-1068.0,0.00021917,2]
[362703607,1748399446468,-430.0,0.00021917,2]
[362703609,1748399446478,-430.0,0.00021917,2]
[362703611,1748399446487,-1199.77,0.00021917,2]
[362703613,1748399446497,-2024.32,0.00021917,2]
[362703615,1748399446506,-430.0,0.00021917,2]
[362703617,1748399446516,-430.0,0.00021917,2]
[362703619,1748399446525,-2316.43,0.00021917,2]
[362703621,1748399446535,-430.0,0.00021917,2]
[362703623,1748399446544,-430.0,0.00021917,2]
[362703625,1748399446554,-243.18298612,0.00022003,6]
[362703627,1748399446563,-1634.12,0.00022071,2]
[362703628,1748399446573,-1000.0,0.00022098,2]
[362703631,1748399446583,-1000.0,0.00022098,2]
[362703632,1748399446592,-243.18298612,0.00022141,6]
[362703634,1748399446603,-639.54241361,0.0002218,2]
[362703637,1748399446614,-161.55388553,0.00022191,2]
[362703639,1748399446624,-1187.79,0.00022191,2]
[362703640,1748399446634,-1068.0,0.00022191,2]
[362703643,1748399446644,-333.74285453,0.00022191,2]
[362703645,1748399446653,-430.0,0.00022191,2]
[362703647,1748399446663,-1199.77,0.00022191,2]
[362703648,1748399446673,-2024.32,0.00022191,2]
[362703650,1748399446683,-430.0,0.00022191,2]
[362703652,1748399446692,-430.0,0.00022191,2]
[362703654,1748399446702,-2316.43,0.00022191,2]
[362703656,1748399446712,-430.0,0.00022191,2]
[362703658,1748399446721,-430.0,0.00022191,2]
[362703660,1748399446731,-500.0,0.0002226,2]
[362703662,1748399446740,-1299.655847,0.0002226,7]
[362703664,1748399446750,-1299.655847,0.0002226,7]
[362703666,1748399446759,-243.18298612,0.00022279,6]
[362703668,1748399446769,-882.458643,0.00022284,3]
[362703670,1748399446778,-153.0,0.00022284,3]
[362703672,1748399446788,-298.72064922,0.00022373,2]
[362703677,1748399446829,-430.0,0.00019178,2]
[362703679,1748399446839,-434.11502845,0.00020186,2]
[362703681,1748399446852,-342.1859121,0.00020186,2]
[362703684,1748399446864,-66.26155945,0.00020186,2]
[362703686,1748399446874,-169.424913,0.00022373,2]
[362703688,1748399446884,-1200.0,0.00022373,2]
[362703690,1748399446893,-139.31352755,0.00022404,2]
[362706047,1748399657797,245.343149,0.00013699,2]
[362706090,1748400512955,-160.0,0.00016923,2]
[362706108,1748400632527,-582.9768744,0.00016754,2]
[362706109,1748400632540,-2590.29322579,0.00016754,2]
[362706110,1748400632550,-20.951986,0.00016923,2]
[362706111,1748400632560,-209.84060797,0.00018124,2]
[362706112,1748400632571,-536.25,0.00018175,2]
[362706113,1748400632580,-259.19099774,0.000189,2]
[362706114,1748400632590,-300.0,0.00019077,2]
[362706115,1748400632600,-300.0,0.00019077,2]
[362706116,1748400632611,-300.0,0.00019077,2]
[362706117,1748400632621,-1200.0,0.00019077,2]
[362706118,1748400632631,-150.39828891,0.00019078,2]
[362706119,1748400632642,-4573.10435352,0.00019078,2]
[362706120,1748400632654,-4937.62830642,0.00019078,2]
[362706121,1748400632663,-5000.0,0.0001917,2]
[362706122,1748400632675,-505.19194433,0.00019173,2]
[362706123,1748400632685,-507.85806984,0.00019173,2]
[362706124,1748400632695,-507.76238459,0.00019173,2]
[362706125,1748400632705,-548.5408452,0.00019176,2]
[362706126,1748400632715,-589.23731343,0.00019176,2]
[362706127,1748400632725,-160.0,0.00019177,2]
[362706128,1748400632735,-500.0,0.00019177,2]
[362706130,1748400632745,-500.0,0.00019177,2]
[362706134,1748400632755,-500.0,0.00019177,2]
[362706136,1748400632765,-244.17118675,0.00019177,2]
[362706138,1748400632774,-275.09699594,0.00019177,2]
[362706140,1748400632784,-500.0,0.00019177,2]
[362706141,1748400632794,-500.0,0.00019177,2]
[362706142,1748400632803,-500.0,0.00019177,2]
[362706143,1748400632812,-264.66871326,0.00019177,2]
[362706144,1748400632823,-500.0,0.00019177,2]
[362706145,1748400632832,-500.0,0.00019177,2]
[362706146,1748400632842,-500.0,0.00019177,2]
[362706147,1748400632852,-500.0,0.00019177,2]
[362706148,1748400632862,-500.0,0.00019177,2]
[362706149,1748400632871,-479.83516946,0.00019177,2]
[362706150,1748400632881,-546.01517977,0.00019177,2]
[362706151,1748400632891,-500.0,0.00019178,2]
[362706152,1748400632900,-532.72182165,0.00019178,2]
[362706153,1748400632910,-500.0,0.00019178,2]
[362706154,1748400632920,-500.0,0.00019178,2]
[362706155,1748400632930,-500.0,0.00019178,2]
[362706156,1748400632940,-500.0,0.00019178,2]
[362706157,1748400632950,-500.0,0.00019178,2]
[362706158,1748400632960,-437.14421841,0.00019178,2]
[362706159,1748400632970,-393.6524885,0.00019178,2]
[362706160,1748400632980,-430.0,0.00019178,2]
[362706161,1748400632990,-443.66779385,0.00019178,2]
[362706162,1748400633000,-430.0,0.00019178,2]
[362706163,1748400633010,-438.0170696,0.00019178,2]
[362706164,1748400633019,-430.0,0.00019178,2]
[362706165,1748400633030,-279.10203048,0.00019178,2]
[362706166,1748400633171,-430.0,0.00019178,2]
[362706167,1748400633182,-194.99669289,0.00019178,2]
[362706168,1748400633193,-430.0,0.00019178,2]
[362706169,1748400633204,-430.0,0.00019178,2]
[362706170,1748400633213,-430.0,0.00019178,2]
[362706171,1748400633228,-430.0,0.00019178,2]
[362706172,1748400633238,-430.0,0.00019178,2]
[362706173,1748400633248,-382.72838151,0.00019178,2]
[362706174,1748400633258,-433.34131454,0.00019178,2]
[362706175,1748400633268,-430.0,0.00019178,2]
[362706176,1748400633278,-500.0,0.00019178,2]
[362706177,1748400633288,-200.25294257,0.00019178,2]
[362706178,1748400633297,-511.41486756,0.00019178,2]
[362706179,1748400633307,-430.0,0.00019178,2]
[362706180,1748400633316,-430.0,0.00019178,2]
[362706181,1748400633326,-430.0,0.00019178,2]
[362706182,1748400633335,-461.59339401,0.00019178,2]
[362706183,1748400633345,-430.0,0.00019178,2]
[362706184,1748400633358,-430.0,0.00019178,2]
[362706185,1748400633367,-430.0,0.00019178,2]
[362706186,1748400633377,-430.0,0.00019178,2]
[362706187,1748400633387,-430.0,0.00019178,2]
[362706188,1748400633396,-430.0,0.00019178,2]
[362706189,1748400633406,-430.0,0.00019178,2]
[362706190,1748400633416,-457.94343503,0.00019178,2]
[362706191,1748400633426,-430.0,0.00019178,2]
[362706192,1748400633436,-430.0,0.00019178,2]
[362706193,1748400633446,-430.0,0.00019178,2]
[362706194,1748400633456,-430.0,0.00019178,2]
[362706195,1748400633466,-430.0,0.00019178,2]
[362706196,1748400633475,-474.29628923,0.00019178,2]
[362706197,1748400633486,-430.0,0.00019178,2]
[362706198,1748400633496,-430.0,0.00019178,2]
[362706199,1748400633506,-430.0,0.00019178,2]
[362706200,1748400633515,-430.0,0.00019178,2]
[362706201,1748400633525,-430.0,0.00019178,2]
[362706202,1748400633535,-557.51382518,0.00019178,2]
[362706203,1748400633544,-430.0,0.00019178,2]
[362706204,1748400633555,-430.0,0.00019178,2]
[362706205,1748400633564,-430.0,0.00019178,2]
[362706206,1748400633574,-447.55275585,0.00019178,2]
[362706207,1748400633583,-433.71159689,0.00019178,2]
[362706208,1748400633593,-430.0,0.00019178,2]
[362706209,1748400633603,-430.0,0.00019178,2]
[362706210,1748400633613,-452.08000297,0.00019178,2]
[362706211,1748400633626,-240.44375351,0.00019178,2]
[362706212,1748400633636,-430.0,0.00019178,2]
[362706213,1748400633645,-430.0,0.00019178,2]
[362706214,1748400633654,-500.0,0.00019178,2]
[362706215,1748400633666,-500.0,0.00019178,2]
[362706216,1748400633675,-564.52572047,0.00019178,2]
[362706217,1748400633685,-627.17256341,0.00019178,2]
[362706218,1748400633696,-430.0,0.00019178,2]
[362706219,1748400633705,-430.0,0.00019178,2]
[362706220,1748400633715,-430.0,0.00019178,2]
[362706221,1748400633725,-430.0,0.00019178,2]
[362706222,1748400633734,-755.81,0.00019178,2]
[362706223,1748400633744,-500.0,0.00019178,2]
[362706224,1748400633753,-615.28400418,0.00019178,2]
[362706225,1748400633763,-456.88688566,0.00019178,2]
[362706226,1748400633772,-430.0,0.00019178,2]
[362706227,1748400633783,-430.0,0.00019178,2]
[362706228,1748400633792,-430.0,0.00019178,2]
[362706229,1748400633801,-430.0,0.00019178,2]
[362706230,1748400633811,-6181.98237518,0.00019178,2]
[362706231,1748400633820,-430.0,0.00019178,2]
[362706232,1748400633830,-430.0,0.00019178,2]
[362706233,1748400633840,-219.0170591,0.00019178,2]
[362706234,1748400633849,-430.0,0.00019178,2]
[362706235,1748400633859,-430.0,0.00019178,2]
[362706236,1748400633869,-430.0,0.00019178,2]
[362706237,1748400633878,-430.0,0.00019178,2]
[362706238,1748400633888,-430.0,0.00019178,2]
[362706239,1748400633898,-442.34572658,0.00019178,2]
[362706240,1748400633907,-430.0,0.00019178,2]
[362706241,1748400633916,-430.0,0.00019178,2]
[362706242,1748400633925,-437.53916776,0.00019178,2]
[362706243,1748400633935,-430.0,0.00019178,2]
[362706244,1748400633945,-430.0,0.00019178,2]
[362706245,1748400633955,-430.0,0.00019178,2]
[362706246,1748400633964,-534.04000877,0.00019178,2]
[362706247,1748400633973,-430.0,0.00019178,2]
[362706248,1748400633983,-430.0,0.00019178,2]
[362706249,1748400633992,-522.85575326,0.00019178,2]
[362706250,1748400634002,-430.0,0.00019178,2]
[362706251,1748400634012,-430.0,0.00019178,2]
[362706252,1748400634021,-430.0,0.00019178,2]
[362706253,1748400634031,-430.0,0.00019178,2]
[362706254,1748400634041,-430.0,0.00019178,2]
[362706255,1748400634050,-430.0,0.00019178,2]
[362706256,1748400634060,-430.0,0.00019178,2]
[362706257,1748400634069,-430.0,0.00019178,2]
[362706258,1748400634079,-430.0,0.00019178,2]
[362706259,1748400634089,-430.0,0.00019178,2]
[362706260,1748400634099,-430.0,0.00019178,2]
[362706261,1748400634109,-430.0,0.00019178,2]
[362706262,1748400634119,-430.0,0.00019178,2]
[362706263,1748400634129,-430.0,0.00019178,2]
[362706264,1748400634139,-430.0,0.00019178,2]
[362706265,1748400634149,-539.04621009,0.00019178,2]
[362706266,1748400634158,-430.0,0.00019178,2]
[362706267,1748400634170,-430.0,0.00019178,2]
[362706268,1748400634180,-430.0,0.00019178,2]
[362706269,1748400634190,-430.0,0.00019178,2]
[362706270,1748400634200,-430.0,0.00019178,2]
[362706271,1748400634211,-530.0,0.00019178,2]
[362706272,1748400634221,-430.0,0.00019178,2]
[362706273,1748400634231,-430.0,0.00019178,2]
[362706274,1748400634241,-430.0,0.00019178,2]
[362706275,1748400634251,-430.0,0.00019178,2]
[362706276,1748400634261,-535.63811744,0.00019178,2]
[362706277,1748400634270,-430.0,0.00019178,2]
[362706278,1748400634280,-430.0,0.00019178,2]
[362706279,1748400634289,-430.0,0.00019178,2]
[362706280,1748400634299,-430.0,0.00019178,2]
[362706281,1748400634308,-430.0,0.00019178,2]
[362706282,1748400634318,-430.0,0.00019178,2]
[362706283,1748400634327,-430.0,0.00019178,2]
[362706284,1748400634337,-430.0,0.00019178,2]
[362706285,1748400634347,-430.0,0.00019178,2]
[362706286,1748400634356,-430.0,0.00019178,2]
[362706287,1748400634366,-430.0,0.00019178,2]
[362706288,1748400634375,-430.0,0.00019178,2]
[362706289,1748400634385,-430.0,0.00019178,2]
[362706290,1748400634395,-430.0,0.00019178,2]
[362706291,1748400634405,-430.0,0.00019178,2]
[362706292,1748400634415,-430.0,0.00019178,2]
[362706293,1748400634424,-504.87557463,0.00019178,2]
[362706294,1748400634434,-430.0,0.00019178,2]
[362706295,1748400634443,-430.0,0.00019178,2]
[362706296,1748400634453,-430.0,0.00019178,2]
[362706297,1748400634463,-430.0,0.00019178,2]
[362706298,1748400634472,-430.0,0.00019178,2]
[362706299,1748400634482,-430.0,0.00019178,2]
[362706300,1748400634492,-430.0,0.00019178,2]
[362706301,1748400634501,-430.0,0.00019178,2]
[362706302,1748400634511,-502.04722992,0.00019178,2]
[362706303,1748400634520,-430.0,0.00019178,2]
[362706304,1748400634530,-430.0,0.00019178,2]
[362706305,1748400634540,-430.0,0.00019178,2]
[362706306,1748400634549,-285.21016925,0.00019178,2]
[362706307,1748400634559,-430.0,0.00019178,2]
[362706308,1748400634568,-430.0,0.00019178,2]
[362706309,1748400634577,-448.48765858,0.00019178,2]
[362706310,1748400634587,-465.39677554,0.00019178,2]
[362706311,1748400634596,-430.0,0.00019178,2]
[362706312,1748400634606,-430.0,0.00019178,2]
[362706313,1748400634617,-351.68566929,0.00019178,2]
[362706314,1748400634628,-436.22715583,0.00019178,2]
[362706315,1748400634638,-452.24656411,0.00019178,2]
[362706316,1748400634647,-452.64438413,0.00019178,2]
[362706317,1748400634659,-458.9743215,0.00019178,2]
[362706318,1748400634670,-430.0,0.00019178,2]
[362706319,1748400634680,-430.0,0.00019178,2]
[362706320,1748400634691,-430.0,0.00019178,2]
[362706321,1748400634700,-435.06316495,0.00019178,2]
[362706322,1748400634710,-430.0,0.00019178,2]
[362706323,1748400634720,-430.0,0.00019178,2]
[362706324,1748400634729,-442.18701459,0.00019178,2]
[362706325,1748400634738,-430.0,0.00019178,2]
[362706326,1748400634748,-430.0,0.00019178,2]
[362706327,1748400634757,-430.0,0.00019178,2]
[362706328,1748400634767,-430.0,0.00019178,2]
[362706329,1748400634780,-430.0,0.00019178,2]
[362706330,1748400634789,-434.21217023,0.00019178,2]
[362706331,1748400634799,-430.0,0.00019178,2]
[362706332,1748400634809,-430.0,0.00019178,2]
[362706333,1748400634819,-430.0,0.00019178,2]
[362706334,1748400634828,-430.0,0.00019178,2]
[362706335,1748400634838,-430.0,0.00019178,2]
[362706336,1748400634847,-430.0,0.00019178,2]
[362706337,1748400634857,-430.0,0.00019178,2]
[362706338,1748400634867,-430.0,0.00019178,2]
[362706339,1748400634877,-430.0,0.00019178,2]
[362706340,1748400634887,-430.0,0.00019178,2]
[362706341,1748400634897,-242.62,0.00019178,2]
[362706342,1748400634906,-430.0,0.00019178,2]
[362706343,1748400634917,-1031.11,0.00019178,2]
[362706344,1748400634927,-432.84448559,0.00019178,2]
[362706345,1748400634936,-430.0,0.00019178,2]
[362706346,1748400634946,-430.0,0.00019178,2]
[362706347,1748400634955,-430.0,0.00019178,2]
[362706348,1748400634965,-430.0,0.00019178,2]
[362706349,1748400634975,-430.0,0.00019178,2]
[362706350,1748400634984,-434.72974763,0.00019178,2]
[362706351,1748400634994,-430.0,0.00019178,2]
[362706352,1748400635003,-430.0,0.00019178,2]
[362706353,1748400635012,-430.0,0.00019178,2]
[362706354,1748400635022,-430.0,0.00019178,2]
[362706355,1748400635031,-430.0,0.00019178,2]
[362706356,1748400635042,-430.0,0.00019178,2]
[362706357,1748400635051,-430.0,0.00019178,2]
[362706358,1748400635061,-187.27621636,0.00019178,2]
[362706359,1748400635071,-536.12713471,0.00019178,2]
[362706360,1748400635080,-430.0,0.00019178,2]
[362706361,1748400635090,-552.62742014,0.00019178,2]
[362706362,1748400635099,-430.0,0.00019178,2]
[362706363,1748400635110,-430.0,0.00019178,2]
[362706364,1748400635120,-430.0,0.00019178,2]
[362706365,1748400635129,-430.0,0.00019178,2]
[362706366,1748400635139,-430.0,0.00019178,2]
[362706367,1748400635148,-430.0,0.00019178,2]
[362706368,1748400635158,-430.0,0.00019178,2]
[362706369,1748400635168,-1229.42,0.00019178,2]
[362706370,1748400635178,-430.0,0.00019178,2]
[362706371,1748400635187,-430.0,0.00019178,2]
[362706372,1748400635196,-840.09,0.00019178,2]
[362706373,1748400635206,-430.0,0.00019178,2]
[362706374,1748400635216,-430.0,0.00019178,2]
[362706375,1748400635226,-434.47430133,0.00019178,2]
[362706376,1748400635235,-430.0,0.00019178,2]
[362706377,1748400635245,-430.0,0.00019178,2]
[362706378,1748400635255,-430.0,0.00019178,2]
[362706379,1748400635264,-430.0,0.00019178,2]
[362706380,1748400635274,-430.0,0.00019178,2]
[362706381,1748400635283,-430.0,0.00019178,2]
[362706382,1748400635293,-430.0,0.00019178,2]
[362706383,1748400635303,-430.0,0.00019178,2]
[362706384,1748400635313,-466.54673717,0.00019178,2]
[362706385,1748400635323,-430.0,0.00019178,2]
[362706386,1748400635332,-430.0,0.00019178,2]
[362706387,1748400635342,-472.53119661,0.00019178,2]
[362706388,1748400635351,-438.99273223,0.00019178,2]
[362706389,1748400635361,-364.79486407,0.00019178,2]
[362706390,1748400635370,-430.0,0.00019178,2]
[362706391,1748400635379,-430.0,0.00019178,2]
[362706392,1748400635388,-434.92805024,0.00019178,2]
[362706393,1748400635397,-358.66104608,0.00019178,2]
[362706394,1748400635406,-430.0,0.00019178,2]
[362706395,1748400635414,-360.22614853,0.00019178,2]
[362706396,1748400635424,-430.0,0.00019178,2]
[362706397,1748400635433,-430.0,0.00019178,2]
[362706398,1748400635442,-430.0,0.00019178,2]
[362706399,1748400635450,-430.0,0.00019178,2]
[362706400,1748400635459,-430.0,0.00019178,2]
[362706401,1748400635466,-430.0,0.00019178,2]
[362706402,1748400635474,-430.0,0.00019178,2]
[362706403,1748400635482,-430.0,0.00019178,2]
[362706404,1748400635491,-430.0,0.00019178,2]
[362706405,1748400635507,-431.64170506,0.00019178,2]
[362706406,1748400635516,-430.0,0.00019178,2]
[362706407,1748400635524,-430.0,0.00019178,2]
[362706408,1748400635533,-430.0,0.00019178,2]